[Event "46th GRE-chT Premier 2018"]
[Site "Rio Achaia"]
[Date "2018.07.12"]
[Round "4"]
[White "Batzoli, Maria"]
[Black "Aivazian, Elpida Sofia"]
[Result "1/2-1/2"]
[ECO "A45"]
[WhiteElo "1312"]
[BlackElo "1451"]
[Annotator "NA"]
[PlyCount "94"]
[EventDate "2018.07.10"]
[EventType "team-tourn"]
[EventCountry "GRE"]
[SourceTitle "playchess.com"]
[Source "ChessBase"]
[SourceQuality "1"]
[TimeControl "40/5400+30:1800+30"]

1. d4 {[%emt 0:00:00]} Nf6 {[%emt 0:00:00]} 2. Bf4 {[%emt 0:00:00]} g6 {[%emt 0:00:00]} 3. e3 {[%emt 0:00:00]} Bg7 {[%emt 0:00:00]} 4. Nc3 {[%emt 0:00:29]} d6 {[%emt 0:00:23]} 5. h3 {[%emt 0:00:08]} O-O {[%emt 0:00:19]} 6. Nf3 {[%emt 0:00:40]} Re8 {[%emt 0:06:14]} 7. Be2 {[%emt 0:01:13]} Nbd7 {[%emt 0:02:01]} 8. O-O {[%emt 0:01:18]} e5 {[%emt 0:00:31]} 9. dxe5 {[%emt 0:01:43]} dxe5 {[%emt 0:03:18]} 10. Nxe5 {[%emt 0:10:54]} Nh5 {[%emt 0:11:20]} 11. Bxh5 {[%emt 0:00:40]} Nxe5 {[%emt 0:02:06]} 12. Bxe5 {[%emt 0:00:48]} Bxe5 {[%emt 0:04:47]} 13. Qxd8 {[%emt 0:04:22]} Rxd8 {[%emt 0:00:25]} 14. Bf3 {[%emt 0:00:25]} Be6 {[%emt 0:11:55]} 15. Rfd1 {[%emt 0:31:06]} Bxc3 {[%emt 0:30:22]} 16. bxc3 {[%emt 0:00:09]} c6 {[%emt 0:00:35]} 17. a3 {[%emt 0:01:56]} Kf8 {[%emt 0:08:53]} 18. Kf1 {[%emt 0:00:25]} Ke7 {[%emt 0:00:32]} 19. Rab1 {[%emt 0:00:32]} Rxd1+ {[%emt 0:00:32]} 20. Rxd1 {[%emt 0:00:30]} Rc8 {[%emt 0:00:32]} 21. Rd4 {[%emt 0:05:52]} Kf6 {[%emt 0:05:57]} 22. Be2 {[%emt 0:01:17]} c5 {[%emt 0:01:33]} 23. Rd2 {[%emt 0:03:14]} h5 {[%emt 0:04:25]} 24. f4 {[%emt 0:04:52]} Bf5 {[%emt 0:02:53]} 25. Bf3 {[%emt 0:00:33]} b5 {[%emt 0:01:11]} 26. g4 {[%emt 0:01:28]} hxg4 {[%emt 0:00:04]} 27. Bxg4 {[%emt 0:00:46]} Bxg4 {[%emt 0:01:18]} 28. hxg4 {[%emt 0:00:05]} Rc6 {[%emt 0:01:12]} 29. Rd1 {[%emt 0:01:07]} a5 {[%emt 0:00:31]} 30. Ke2 {[%emt 0:02:27]} b4 {[%emt 0:00:30]} 31. a4 {[%emt 0:02:32]} Ke6 {[%emt 0:00:36]} 32. c4 {[%emt 0:00:30]} Rb6 {[%emt 0:00:25]} 33. Rd3 {[%emt 0:00:20]} Rc6 {[%emt 0:00:31]} 34. Kf3 {[%emt 0:00:28]} f5 {[%emt 0:00:38]} 35. g5 Rc8 {[%emt 0:00:15]} 36. Rd2 {[%emt 0:03:18]} Rh8 {[%emt 0:00:30]} 37. Kg2 {[%emt 0:01:54]} Re8 {[%emt 0:00:03]} 38. Kf3 {[%emt 0:01:39]} Rh8 {[%emt 0:00:05]} 39. Kg2 {[%emt 0:00:00]} Re8 {[%emt 0:00:00]} 40. Rd5 {[%emt 0:00:00]} Rc8 {[%emt 0:00:00]} 41. Kf3 {[%emt 0:06:04]} Ke7 {[%emt 0:23:45]} 42. Rd1 {[%emt 0:00:18]} Rd8 {[%emt 0:00:01]} 43. Rxd8 {[%emt 0:00:12]} Kxd8 {[%emt 0:00:10]} 44. e4 {[%emt 0:01:04]} Ke7 {[%emt 0:00:05]} 45. exf5 {[%emt 0:01:33]} gxf5 46. Kg3 {[%emt 0:00:17]} Kf7 {[%emt 0:00:49]} 47. Kh3 Kg7 1/2-1/2

[Event "46th GRE-chT Premier 2018"]
[Site "Rio Achaia"]
[Date "2018.07.12"]
[Round "4"]
[White "Stathatos, Alexandros"]
[Black "Goutoufas, Christos"]
[Result "1/2-1/2"]
[ECO "B70"]
[WhiteElo "1311"]
[BlackElo "1434"]
[Annotator "NA"]
[PlyCount "62"]
[EventDate "2018.07.10"]
[EventType "team-tourn"]
[EventCountry "GRE"]
[SourceTitle "playchess.com"]
[Source "ChessBase"]
[SourceQuality "1"]
[TimeControl "40/5400+30:1800+30"]

1. e4 c5 {[%emt 0:02:51]} 2. Nf3 {[%emt 0:00:02]} d6 {[%emt 0:00:10]} 3. d4 {[%emt 0:00:05]} cxd4 {[%emt 0:00:17]} 4. Nxd4 {[%emt 0:00:03]} Nf6 {[%emt 0:00:31]} 5. Nc3 {[%emt 0:00:04]} g6 {[%emt 0:00:23]} 6. Bc4 {[%emt 0:00:45]} Bg7 {[%emt 0:00:58]} 7. O-O {[%emt 0:00:37]} O-O {[%emt 0:00:43]} 8. f3 {[%emt 0:00:54]} Nc6 {[%emt 0:00:43]} 9. Be3 {[%emt 0:01:16]} Qb6 {[%emt 0:08:10]} 10. Rb1 {[%emt 0:02:22]} Nxe4 {[%emt 0:19:45]} 11. Nd5 {[%emt 0:00:48]} Qxd4 {[%emt 0:32:17]} 12. Bxd4 {[%emt 0:00:41]} Bxd4+ {[%emt 0:01:12]} 13. Kh1 {[%emt 0:00:05]} Nf2+ {[%emt 0:00:11]} 14. Rxf2 {[%emt 0:00:06]} Bxf2 {[%emt 0:00:16]} 15. Qe2 {[%emt 0:00:17]} Bh4 {[%emt 0:06:57]} 16. Qe4 {[%emt 0:07:32]} Bf6 {[%emt 0:02:32]} 17. Nxf6+ {[%emt 0:00:27]} exf6 {[%emt 0:00:10]} 18. Qe2 {[%emt 0:17:10]} Ne5 {[%emt 0:04:07]} 19. Bb3 {[%emt 0:00:35]} Bf5 {[%emt 0:02:34]} 20. Rd1 {[%emt 0:02:08]} Rfd8 {[%emt 0:01:58]} 21. Qb5 {[%emt 0:08:33]} Rab8 {[%emt 0:03:54]} 22. Qb4 {[%emt 0:02:38]} Nc6 {[%emt 0:01:30]} 23. Qf4 {[%emt 0:04:29]} Kg7 {[%emt 0:03:18]} 24. h4 {[%emt 0:01:41]} Ne5 {[%emt 0:02:01]} 25. Qb4 {[%emt 0:00:08]} Nc6 {[%emt 0:00:00]} 26. Qa3 {[%emt 0:01:09]} h5 {[%emt 0:04:06]} 27. Rxd6 {[%emt 0:01:29]} Re8 {[%emt 0:00:33]} 28. Rd2 {[%emt 0:03:39]} Re7 {[%emt 0:00:51]} 29. Qc5 {[%emt 0:03:42]} Rbe8 {[%emt 0:00:12]} 30. Qf2 {[%emt 0:00:32]} a6 {[%emt 0:00:53]} 31. Kh2 {[%emt 0:03:12]} Ne5 1/2-1/2

[Event "46th GRE-chT Premier 2018"]
[Site "Rio Achaia"]
[Date "2018.07.12"]
[Round "4"]
[White "Mavridis, Athanasios"]
[Black "Stefanou, Dimitrios"]
[Result "0-1"]
[ECO "A61"]
[WhiteElo "1304"]
[BlackElo "1824"]
[Annotator "NA"]
[PlyCount "64"]
[EventDate "2018.07.10"]
[EventType "team-tourn"]
[EventCountry "GRE"]
[SourceTitle "playchess.com"]
[Source "ChessBase"]
[SourceQuality "1"]
[TimeControl "40/5400+30:1800+30"]

1. d4 {[%emt 0:00:00]} Nf6 {[%emt 0:00:00]} 2. c4 {[%emt 0:00:00]} c5 {[%emt 0:00:00]} 3. d5 {[%emt 0:00:00]} e6 {[%emt 0:00:07]} 4. Nc3 {[%emt 0:00:21]} exd5 {[%emt 0:00:24]} 5. cxd5 {[%emt 0:00:04]} d6 {[%emt 0:00:04]} 6. Nf3 {[%emt 0:00:06]} g6 {[%emt 0:00:29]} 7. Bf4 {[%emt 0:00:07]} Bg7 {[%emt 0:02:36]} 8. h3 {[%emt 0:00:05]} O-O {[%emt 0:01:11]} 9. e3 {[%emt 0:00:03]} Na6 {[%emt 0:02:42]} 10. Be2 {[%emt 0:01:18]} Nc7 {[%emt 0:02:59]} 11. O-O {[%emt 0:01:32]} Rb8 {[%emt 0:10:28]} 12. a4 {[%emt 0:00:48]} b6 {[%emt 0:01:16]} 13. e4 {[%emt 0:05:43]} Re8 {[%emt 0:14:47]} 14. Nd2 {[%emt 0:09:54]} a6 {[%emt 0:04:55]} 15. Qc2 {[%emt 0:21:57]} b5 {[%emt 0:16:10]} 16. a5 {[%emt 0:03:19]} b4 {[%emt 0:13:57]} 17. Na4 {[%emt 0:05:41]} Nfxd5 {[%emt 0:05:51]} 18. exd5 {[%emt 0:01:29]} Rxe2 {[%emt 0:00:19]} 19. Be3 {[%emt 0:00:42]} Nxd5 {[%emt 0:03:38]} 20. Qd3 {[%emt 0:00:30]} Nxe3 {[%emt 0:01:31]} 21. fxe3 {[%emt 0:00:09]} Rxe3 {[%emt 0:01:21]} 22. Qxe3 {[%emt 0:04:03]} Bd4 {[%emt 0:00:08]} 23. Qxd4 {[%emt 0:00:08]} cxd4 {[%emt 0:00:06]} 24. Nb6 {[%emt 0:00:11]} Bf5 {[%emt 0:00:45]} 25. Nf3 {[%emt 0:02:31]} d3 {[%emt 0:01:43]} 26. Nd4 {[%emt 0:01:58]} Be4 {[%emt 0:03:33]} 27. Rae1 {[%emt 0:04:28]} f5 {[%emt 0:01:00]} 28. Ne6 {[%emt 0:06:05]} Qe7 {[%emt 0:01:37]} 29. Nf4 {[%emt 0:01:56]} Qg7 {[%emt 0:01:31]} 30. Ne6 {[%emt 0:05:37]} Qxb2 {[%emt 0:02:10]} 31. Rf2 {[%emt 0:00:08]} d2 {[%emt 0:00:53]} 32. Rd1 {[%emt 0:00:17]} Qb3 {[%emt 0:00:26]} 0-1

[Event "46th GRE-chT Premier 2018"]
[Site "Rio Achaia"]
[Date "2018.07.12"]
[Round "4"]
[White "Apostolidou, Eleni"]
[Black "Georgitsi, Sofia"]
[Result "1/2-1/2"]
[ECO "C55"]
[WhiteElo "1290"]
[BlackElo "1420"]
[Annotator "NA"]
[PlyCount "111"]
[EventDate "2018.07.10"]
[EventType "team-tourn"]
[EventCountry "GRE"]
[SourceTitle "playchess.com"]
[Source "ChessBase"]
[SourceQuality "1"]
[TimeControl "40/5400+30:1800+30"]

1. e4 {[%emt 0:00:00]} e5 {[%emt 0:01:08]} 2. Nf3 {[%emt 0:00:00]} Nc6 {[%emt 0:00:06]} 3. d4 {[%emt 0:00:00]} exd4 {[%emt 0:00:06]} 4. Bc4 {[%emt 0:00:00]} Nf6 {[%emt 0:00:10]} 5. e5 {[%emt 0:00:09]} Ng4 {[%emt 0:00:39]} 6. O-O {[%emt 0:00:39]} d6 {[%emt 0:01:15]} 7. exd6 {[%emt 0:01:46]} Bxd6 {[%emt 0:00:09]} 8. Re1+ {[%emt 0:00:40]} Be7 {[%emt 0:00:17]} 9. Bg5 {[%emt 0:01:02]} O-O {[%emt 0:00:23]} 10. Bxe7 {[%emt 0:00:52]} Nxe7 {[%emt 0:00:06]} 11. Qxd4 {[%emt 0:01:06]} Qxd4 {[%emt 0:00:22]} 12. Nxd4 {[%emt 0:00:11]} Nf5 {[%emt 0:01:48]} 13. Nf3 {[%emt 0:03:17]} b6 {[%emt 0:07:55]} 14. Bd5 {[%emt 0:08:37]} Rb8 {[%emt 0:00:26]} 15. Nc3 {[%emt 0:01:40]} Nf6 {[%emt 0:02:03]} 16. Bc6 {[%emt 0:04:37]} Bb7 {[%emt 0:14:28]} 17. Bxb7 {[%emt 0:02:49]} Rxb7 {[%emt 0:00:19]} 18. Rad1 {[%emt 0:00:26]} Nd6 {[%emt 0:08:59]} 19. b3 {[%emt 0:07:43]} a6 {[%emt 0:14:25]} 20. Ng5 {[%emt 0:10:57]} Re8 {[%emt 0:05:01]} 21. Rxe8+ {[%emt 0:08:13]} Nfxe8 {[%emt 0:00:11]} 22. Nge4 {[%emt 0:00:10]} Nxe4 {[%emt 0:05:27]} 23. Nxe4 {[%emt 0:00:08]} Rb8 {[%emt 0:01:07]} 24. Rd7 {[%emt 0:07:05]} Rc8 {[%emt 0:01:35]} 25. Kf1 {[%emt 0:05:30]} h6 {[%emt 0:09:42]} 26. Nc3 {[%emt 0:13:07]} Nf6 {[%emt 0:00:36]} 27. Rd2 {[%emt 0:01:25]} Re8 {[%emt 0:01:06]} 28. Nd5 {[%emt 0:01:48]} Nxd5 {[%emt 0:01:23]} 29. Rxd5 {[%emt 0:00:06]} Re7 {[%emt 0:00:17]} 30. Rd2 {[%emt 0:00:53]} Kf8 {[%emt 0:02:14]} 31. Rd8+ {[%emt 0:01:15]} Re8 {[%emt 0:00:18]} 32. Rxe8+ {[%emt 0:00:04]} Kxe8 {[%emt 0:00:06]} 33. Ke2 {[%emt 0:00:03]} Ke7 {[%emt 0:00:11]} 34. Ke3 {[%emt 0:00:35]} Ke6 {[%emt 0:00:07]} 35. c4 {[%emt 0:02:35]} c5 {[%emt 0:00:20]} 36. h3 {[%emt 0:02:09]} g5 {[%emt 0:06:42]} 37. g3 {[%emt 0:08:28]} f5 {[%emt 0:04:01]} 38. f4 {[%emt 0:02:45]} Kf6 {[%emt 0:08:58]} 39. Kf3 {[%emt 0:03:00]} Kg6 {[%emt 0:01:38]} 40. a3 {[%emt 0:00:00]} a5 {[%emt 0:00:00]} 41. a4 {[%emt 0:03:46]} Kh5 {[%emt 0:10:39]} 42. Kg2 {[%emt 0:12:54]} Kg6 {[%emt 0:03:28]} 43. Kf3 {[%emt 0:01:25]} Kh5 {[%emt 0:00:13]} 44. Kg2 {[%emt 0:01:53]} Kg6 {[%emt 0:00:20]} 45. Kf3 {[%emt 0:01:18]} Kh5 {[%emt 0:00:11]} 46. fxg5 {[%emt 0:03:48]} Kxg5 {[%emt 0:00:45]} 47. h4+ {[%emt 0:00:51]} Kg6 {[%emt 0:03:12]} 48. Kf4 {[%emt 0:00:22]} Kf6 {[%emt 0:00:18]} 49. h5 {[%emt 0:06:33]} Ke6 {[%emt 0:00:46]} 50. Kf3 {[%emt 0:00:28]} Ke5 {[%emt 0:01:02]} 51. Ke3 {[%emt 0:00:12]} Ke6 {[%emt 0:00:47]} 52. Kf3 {[%emt 0:00:13]} Ke5 {[%emt 0:00:29]} 53. Ke3 {[%emt 0:00:09]} Ke6 {[%emt 0:00:08]} 54. Kf3 {[%emt 0:00:04]} Ke5 {[%emt 0:00:06]} 55. Ke3 {[%emt 0:00:06]} Ke6 {[%emt 0:00:07] Ke4 Ke5+} 56. Kf3 {[%emt 0:00:10]} 1/2-1/2

[Event "46th GRE-chT Premier 2018"]
[Site "Rio Achaia"]
[Date "2018.07.12"]
[Round "4"]
[White "Giannoulaki, Ermofili"]
[Black "Matthaiaki, Nefeli"]
[Result "1-0"]
[ECO "D05"]
[WhiteElo "1286"]
[BlackElo "1266"]
[Annotator "NA"]
[PlyCount "95"]
[EventDate "2018.07.10"]
[EventType "team-tourn"]
[EventCountry "GRE"]
[SourceTitle "playchess.com"]
[Source "ChessBase"]
[SourceQuality "1"]
[TimeControl "40/5400+30:1800+30"]

1. d4 {[%emt 0:00:00]} d5 {[%emt 0:00:00]} 2. Nf3 {[%emt 0:00:00]} Nf6 {[%emt 0:00:40]} 3. e3 {[%emt 0:00:03]} e6 {[%emt 0:05:01]} 4. Bd3 {[%emt 0:00:17]} Nbd7 {[%emt 0:04:01]} 5. O-O {[%emt 0:00:19]} b6 {[%emt 0:02:03]} 6. b3 {[%emt 0:00:23]} Bb7 {[%emt 0:01:24]} 7. Bb2 {[%emt 0:00:39]} c5 {[%emt 0:07:56]} 8. c4 {[%emt 0:00:17]} Be7 {[%emt 0:01:03]} 9. Nc3 {[%emt 0:01:21]} O-O {[%emt 0:01:29]} 10. Qe2 {[%emt 0:00:26]} h6 {[%emt 0:07:24]} 11. Rac1 {[%emt 0:01:32]} a6 {[%emt 0:09:52]} 12. Rfd1 {[%emt 0:03:06]} Qc7 {[%emt 0:03:38]} 13. cxd5 {[%emt 0:07:38]} Nxd5 {[%emt 0:09:55]} 14. Nxd5 {[%emt 0:04:08]} exd5 {[%emt 0:00:56]} 15. Bf5 {[%emt 0:04:05]} Qd6 {[%emt 0:07:25]} 16. Ba3 {[%emt 0:13:03]} Rac8 {[%emt 0:03:22]} 17. dxc5 {[%emt 0:03:30]} bxc5 {[%emt 0:00:31]} 18. e4 {[%emt 0:00:34]} Rfd8 {[%emt 0:04:40]} 19. e5 {[%emt 0:06:30]} Qc7 {[%emt 0:09:25]} 20. e6 {[%emt 0:01:11]} fxe6 {[%emt 0:01:01]} 21. Qxe6+ {[%emt 0:00:28]} Kh8 {[%emt 0:03:43]} 22. Qxe7 {[%emt 0:00:48]} Qc6 {[%emt 0:02:59]} 23. Bb2 {[%emt 0:01:35]} Nf6 {[%emt 0:01:49]} 24. Bxf6 {[%emt 0:00:55]} Qxf6 {[%emt 0:00:10]} 25. Qxf6 {[%emt 0:00:28]} gxf6 {[%emt 0:00:10]} 26. Bxc8 {[%emt 0:00:08]} Rxc8 {[%emt 0:00:08]} 27. Re1 {[%emt 0:01:05]} Rc7 {[%emt 0:01:05]} 28. Re6 {[%emt 0:00:38]} Kg7 {[%emt 0:00:17]} 29. Re2 {[%emt 0:01:42]} Kf7 {[%emt 0:00:28]} 30. Rec2 {[%emt 0:00:12]} Ke7 {[%emt 0:03:02]} 31. Rxc5 {[%emt 0:00:13]} Rxc5 {[%emt 0:00:12]} 32. Rxc5 {[%emt 0:00:09]} Kd6 {[%emt 0:00:13]} 33. Rc3 {[%emt 0:00:39]} Bc6 {[%emt 0:00:40]} 34. Nd4 {[%emt 0:00:41]} Bd7 {[%emt 0:00:22]} 35. b4 {[%emt 0:00:49]} h5 {[%emt 0:00:35]} 36. h3 {[%emt 0:01:50]} Ke5 {[%emt 0:01:17]} 37. Nc6+ {[%emt 0:00:36]} Kd6 {[%emt 0:00:24]} 38. Nb8 {[%emt 0:01:08]} Bb5 {[%emt 0:00:16]} 39. Ra3 {[%emt 0:00:19]} Kc7 {[%emt 0:01:05]} 40. Nxa6+ {[%emt 0:00:00]} Kb6 {[%emt 0:00:00]} 41. Nc5 {[%emt 0:00:21]} Kc6 {[%emt 0:00:31]} 42. Rf3 {[%emt 0:00:18]} d4 {[%emt 0:00:40]} 43. Rxf6+ {[%emt 0:00:36]} Kd5 {[%emt 0:00:08]} 44. Rf3 {[%emt 0:00:41]} Kc4 {[%emt 0:00:21]} 45. a4 {[%emt 0:01:09]} Kxb4 {[%emt 0:00:32]} 46. axb5 {[%emt 0:00:11]} Kxc5 {[%emt 0:00:05]} 47. Rd3 {[%emt 0:00:39]} Kxb5 {[%emt 0:00:10]} 48. Rxd4 {[%emt 0:00:07]} 1-0

[Event "46th GRE-chT Premier 2018"]
[Site "Rio Achaia"]
[Date "2018.07.12"]
[Round "4"]
[White "Karavitaki, Antonia"]
[Black "Trapalis, Theodoros"]
[Result "1/2-1/2"]
[ECO "E43"]
[WhiteElo "1285"]
[BlackElo "1386"]
[Annotator "NA"]
[PlyCount "145"]
[EventDate "2018.07.10"]
[EventType "team-tourn"]
[EventCountry "GRE"]
[SourceTitle "playchess.com"]
[Source "ChessBase"]
[SourceQuality "1"]
[TimeControl "40/5400+30:1800+30"]

1. d4 {[%emt 0:00:00]} Nf6 {[%emt 0:00:00]} 2. c4 {[%emt 0:00:00]} e6 {[%emt 0:00:00]} 3. Nc3 {[%emt 0:00:00]} Bb4 {[%emt 0:00:00]} 4. e3 {[%emt 0:00:12]} b6 {[%emt 0:01:59]} 5. Bd3 {[%emt 0:01:10]} Bb7 {[%emt 0:00:51]} 6. Nf3 {[%emt 0:01:15]} O-O {[%emt 0:01:51]} 7. O-O {[%emt 0:02:08]} c5 {[%emt 0:02:35]} 8. a3 {[%emt 0:04:23]} Bxc3 {[%emt 0:00:33]} 9. bxc3 {[%emt 0:00:09]} d6 {[%emt 0:02:19]} 10. Re1 {[%emt 0:08:11]} Nbd7 {[%emt 0:04:25]} 11. e4 {[%emt 0:03:33]} e5 {[%emt 0:04:48]} 12. d5 {[%emt 0:01:08]} Qe7 {[%emt 0:04:40]} 13. Nd2 {[%emt 0:05:37]} Rfd8 {[%emt 0:07:57]} 14. Nf1 {[%emt 0:02:24]} Nf8 {[%emt 0:04:52]} 15. Ng3 {[%emt 0:06:05]} Bc8 {[%emt 0:08:21]} 16. Nh5 {[%emt 0:28:43]} h6 {[%emt 0:11:13]} 17. Qf3 {[%emt 0:11:30]} Nxh5 {[%emt 0:15:19]} 18. Qxh5 {[%emt 0:00:31]} Ng6 {[%emt 0:00:21]} 19. Be2 {[%emt 0:06:37]} Qh4 {[%emt 0:08:00]} 20. Qxh4 {[%emt 0:01:35]} Nxh4 {[%emt 0:00:09]} 21. g3 {[%emt 0:00:21]} Ng6 {[%emt 0:00:29]} 22. f4 {[%emt 0:01:25]} Ba6 {[%emt 0:07:35]} 23. f5 {[%emt 0:03:37]} Ne7 {[%emt 0:00:12]} 24. g4 {[%emt 0:01:07]} Rd7 {[%emt 0:07:40]} 25. g5 {[%emt 0:03:50]} hxg5 {[%emt 0:00:57]} 26. Bxg5 {[%emt 0:00:14]} f6 {[%emt 0:00:17]} 27. Be3 {[%emt 0:00:50]} Kh7 {[%emt 0:01:07]} 28. Kf2 {[%emt 0:00:40]} Rh8 {[%emt 0:00:43]} 29. Rg1 {[%emt 0:00:35]} Kg8 {[%emt 0:00:31]} 30. Rg2 {[%emt 0:00:21]} Nc8 {[%emt 0:02:33]} 31. Rh1 {[%emt 0:01:51]} Rh4 {[%emt 0:01:42]} 32. Bd3 {[%emt 0:02:56]} Kf8 {[%emt 0:01:10]} 33. Kg3 {[%emt 0:00:30]} Rh7 {[%emt 0:00:16]} 34. h4 {[%emt 0:00:48]} Ne7 {[%emt 0:00:30]} 35. Kf2 {[%emt 0:00:33]} Ng8 {[%emt 0:00:32]} 36. h5 {[%emt 0:01:09]} Rb7 {[%emt 0:00:48]} 37. Be2 {[%emt 0:00:52]} b5 {[%emt 0:00:38]} 38. cxb5 {[%emt 0:00:46]} Bxb5 {[%emt 0:00:18]} 39. Rb1 {[%emt 0:00:48]} Ba6 {[%emt 0:00:07]} 40. Rxb7 {[%emt 0:00:00]} Bxb7 {[%emt 0:00:00]} 41. Rg1 {[%emt 0:03:33]} Ke7 {[%emt 0:20:32]} 42. a4 {[%emt 0:08:55]} Kd8 {[%emt 0:01:29]} 43. a5 {[%emt 0:01:44]} Ne7 {[%emt 0:02:02]} 44. Bd2 {[%emt 0:09:36]} a6 {[%emt 0:02:45]} 45. Rb1 {[%emt 0:01:40]} Kc7 {[%emt 0:00:15]} 46. Be3 {[%emt 0:03:25]} Nc8 {[%emt 0:01:50]} 47. Rh1 {[%emt 0:01:51]} Ne7 {[%emt 0:00:39]} 48. Rg1 {[%emt 0:01:12]} Bc8 {[%emt 0:00:29]} 49. Rb1 {[%emt 0:00:54]} Bb7 {[%emt 0:00:16]} 50. Rb6 {[%emt 0:01:32]} Nc8 {[%emt 0:04:42]} 51. Rb1 {[%emt 0:00:27]} Ne7 {[%emt 0:00:10]} 52. c4 {[%emt 0:01:32]} Bc8 {[%emt 0:00:20]} 53. Bd2 {[%emt 0:00:23]} Bb7 {[%emt 0:00:17]} 54. Rb3 {[%emt 0:00:49]} Bc8 {[%emt 0:00:22]} 55. Bd1 {[%emt 0:00:38]} Bb7 {[%emt 0:01:02]} 56. Be2 {[%emt 0:00:39]} Bc8 {[%emt 0:00:13]} 57. Rb1 {[%emt 0:00:17]} Bb7 {[%emt 0:00:17]} 58. Rg1 {[%emt 0:00:51]} Bc8 {[%emt 0:00:16]} 59. Bf3 {[%emt 0:00:29]} Bb7 {[%emt 0:00:13]} 60. Be2 {[%emt 0:00:26]} Bc8 {[%emt 0:00:08]} 61. Rb1 {[%emt 0:00:31]} Bb7 {[%emt 0:00:25]} 62. Kg3 {[%emt 0:00:26]} Bc8 {[%emt 0:00:27]} 63. Rb6 {[%emt 0:00:37]} Bb7 {[%emt 0:00:26]} 64. Kf2 {[%emt 0:00:24]} Bc8 {[%emt 0:00:44]} 65. Bd1 {[%emt 0:00:18]} Bb7 {[%emt 0:00:30]} 66. Be2 {[%emt 0:00:34]} Bc8 {[%emt 0:00:08]} 67. Rb1 {[%emt 0:00:07]} Bb7 {[%emt 0:01:17]} 68. Rg1 {[%emt 0:00:24]} Bc8 {[%emt 0:00:09]} 69. Bd1 {[%emt 0:00:17]} Bb7 {[%emt 0:00:21]} 70. Be2 {[%emt 0:01:02]} Bc8 {[%emt 0:00:38]} 71. Bf3 {[%emt 0:00:53]} Bb7 {[%emt 0:00:08]} 72. Rh1 {[%emt 0:00:31]} Ng8 {[%emt 0:01:00]} 73. Bd1 {[%emt 0:00:30]} 1/2-1/2